bitfinex/quotes_SOLUSD_20230903
["timestamp","ask_amount","ask_price","bid_price","bid_amount"]
[1693772979261,7.996,19.508,19.494,55.0]
[1693772979468,7.996,19.508,19.495,4.94461036]
[1693772979650,7.996,19.508,19.496,55.0]
[1693772979854,7.996,19.508,19.497,4.94461036]
[1693772981261,7.996,19.508,19.493,4.94461036]
[1693772981449,7.996,19.508,19.495,4.94461036]
[1693772981649,7.996,19.508,19.497,4.94461036]
[1693772981851,7.996,19.508,19.495,4.94461036]
[1693772982050,7.996,19.508,19.497,4.94461036]
[1693772982250,7.996,19.508,19.495,4.94461036]
[1693772982864,106.1673,19.508,19.496,55.0]
[1693772983167,106.1673,19.508,19.497,4.94461036]
[1693772990275,98.1713,19.508,19.497,4.94461036]
[1693772991078,98.1713,19.508,19.498,55.0]
[1693772991263,98.1713,19.508,19.499,4.94461036]
[1693772991464,98.1713,19.508,19.498,55.0]
[1693772993975,98.1713,19.508,19.493,2.48747968]
[1693772994270,98.1713,19.508,19.491,4.94461036]
[1693772994573,98.1713,19.508,19.493,4.94461036]
[1693772994779,98.1713,19.508,19.494,55.0]
[1693772994960,98.1713,19.508,19.495,4.94461036]
[1693772995159,98.1713,19.508,19.496,55.0]
[1693772995361,98.1713,19.508,19.497,4.94461036]
[1693772995561,98.1713,19.508,19.498,55.0]
[1693772995762,98.1713,19.508,19.499,4.94461036]
[1693772995964,98.1713,19.508,19.498,55.0]
[1693773001079,7.994,19.514,19.498,55.0]
[1693773001266,96.9534,19.514,19.5,37.53]
[1693773001462,96.9534,19.514,19.501,59.94461036]
[1693773001860,96.9534,19.514,19.501,55.0]
[1693773002564,104.9474,19.514,19.501,55.0]
[1693773002974,7.994,19.514,19.496,55.0]
[1693773003179,7.994,19.514,19.497,24.94461036]
[1693773003477,7.994,19.514,19.499,4.94461036]
[1693773003672,7.994,19.514,19.498,55.0]
[1693773003673,7.994,19.514,19.501,4.94461036]
[1693773004072,7.994,19.514,19.499,4.94461036]
[1693773004274,7.994,19.514,19.5,55.0]
[1693773004479,7.994,19.514,19.501,4.94461036]
[1693773005779,55.0,19.513,19.498,4.94461036]
[1693773005982,7.996,19.51,19.499,55.0]
[1693773006181,7.996,19.51,19.5,4.94461036]
[1693773006373,7.996,19.51,19.499,4.94461036]
[1693773006971,45.526,19.51,19.499,4.94461036]
[1693773007175,71.358,19.51,19.499,4.94461036]
[1693773007481,7.998,19.504,19.491,4.94461036]
[1693773008373,33.838,19.504,19.491,4.94461036]
[1693773008583,33.838,19.504,19.489,4.94461036]
[1693773009684,33.838,19.504,19.49,55.0]
[1693773009873,33.838,19.504,19.491,4.94461036]
[1693773010074,7.998,19.504,19.491,4.94461036]
[1693773036713,37.53,19.5,19.491,4.94461036]
[1693773036900,8.001,19.498,19.487,4.94461036]
[1693773037105,8.001,19.498,19.482,4.94461036]
[1693773038099,20.0,19.499,19.482,4.94461036]
[1693773038305,20.0,19.499,19.483,80.65171353]
[1693773038615,20.0,19.499,19.484,4.94461036]
[1693773038815,55.0,19.498,19.481,4.94461036]
[1693773039015,55.0,19.498,19.481,30.59632389]
[1693773039513,63.001,19.498,19.481,30.59632389]
[1693773040409,63.001,19.498,19.482,55.0]
[1693773040609,63.001,19.498,19.483,4.94461036]
[1693773040815,63.001,19.498,19.484,55.0]
[1693773041012,63.001,19.498,19.485,4.94461036]
[1693773045118,155.4314,19.498,19.485,4.94461036]
[1693773051309,100.4314,19.498,19.485,4.94461036]
[1693773053524,100.4314,19.498,19.486,55.0]
[1693773053826,100.4314,19.498,19.487,4.94461036]
[1693773054623,100.4314,19.498,19.482,4.94461036]
[1693773054818,100.4314,19.498,19.484,4.94461036]
[1693773055010,92.4304,19.498,19.486,4.94461036]
[1693773055216,92.4304,19.498,19.485,55.0]
[1693773055217,20.0,19.499,19.488,4.94461036]
[1693773055413,20.0,19.499,19.486,4.94461036]
[1693773055725,8.0,19.498,19.488,4.94461036]
[1693773056321,8.0,19.498,19.486,4.94461036]
[1693773056531,8.0,19.498,19.488,4.94461036]
[1693773056713,8.0,19.498,19.486,4.94461036]
[1693773057024,8.0,19.498,19.488,4.94461036]
[1693773057225,8.0,19.498,19.487,55.0]
[1693773057709,8.0,19.498,19.488,4.94461036]
[1693773060230,28.0,19.499,19.488,4.94461036]
[1693773060431,20.0,19.499,19.488,4.94461036]
[1693773062018,28.0,19.499,19.488,4.94461036]
[1693773063435,28.0,19.499,19.482,4.94461036]
[1693773063625,28.0,19.499,19.483,55.0]
[1693773063827,28.0,19.499,19.484,4.94461036]
[1693773064037,28.0,19.499,19.485,55.0]
[1693773064226,28.0,19.499,19.486,4.94461036]
[1693773068431,53.847,19.499,19.486,4.94461036]
[1693773074342,53.847,19.499,19.481,4.94461036]
[1693773074541,8.002,19.493,19.48,4.94461036]
[1693773074746,8.002,19.493,19.477,4.94461036]
[1693773075132,8.004,19.489,19.477,4.94461036]
[1693773075331,93.3638,19.492,19.476,4.94461036]
[1693773075532,8.003,19.491,19.476,46.14789536]
[1693773075738,8.003,19.491,19.478,4.94461036]
[1693773075944,8.003,19.491,19.48,4.94461036]
[1693773077650,112.53,19.49,19.477,4.94461036]
[1693773077950,8.005,19.487,19.477,4.94461036]
[1693773078136,8.005,19.487,19.471,4.94461036]
[1693773078831,8.005,19.487,19.472,55.0]
[1693773079031,8.005,19.487,19.473,4.94461036]
[1693773079348,8.005,19.487,19.475,4.94461036]
[1693773096156,106.1024,19.489,19.475,4.94461036]
[1693773096363,106.1024,19.489,19.476,55.0]
[1693773096551,106.1024,19.489,19.477,4.94461036]
[1693773096751,8.004,19.489,19.477,4.94461036]
[1693773100567,55.0,19.488,19.471,4.94461036]
[1693773100764,8.006,19.485,19.471,4.94461036]
[1693773101162,55.0,19.488,19.471,4.94461036]
[1693773101364,8.005,19.487,19.471,4.94461036]
[1693773101569,8.005,19.487,19.472,55.0]
[1693773101769,8.005,19.487,19.473,4.94461036]
[1693773102456,8.005,19.487,19.474,55.0]
[1693773102762,8.005,19.487,19.475,4.94461036]
[1693773104970,55.0,19.486,19.471,4.94461036]
[1693773105370,63.005,19.486,19.471,4.94461036]
[1693773105554,55.0,19.486,19.471,4.94461036]
[1693773105754,8.005,19.487,19.471,4.94461036]
[1693773105954,8.005,19.487,19.473,4.94461036]
[1693773106170,8.005,19.487,19.474,55.0]
[1693773106377,8.005,19.487,19.475,4.94461036]
[1693773122684,11.86679,19.489,19.475,4.94461036]
[1693773122986,19.87079,19.489,19.475,4.94461036]
[1693773126498,55.0,19.488,19.475,4.94461036]
[1693773126793,8.005,19.486,19.475,4.94461036]
[1693773130283,8.005,19.486,19.471,4.94461036]
[1693773130483,8.005,19.486,19.472,55.0]
[1693773130687,8.005,19.486,19.473,4.94461036]
[1693773135008,55.0,19.485,19.471,4.94461036]
[1693773135899,92.591,19.484,19.471,4.94461036]
[1693773136482,55.0,19.485,19.471,4.94461036]
[1693773136689,55.0,19.486,19.471,4.94461036]
[1693773136890,152.8236,19.486,19.471,4.94461036]
[1693773137996,152.8236,19.486,19.473,4.94461036]
[1693773138600,152.8236,19.486,19.471,4.94461036]
[1693773138800,152.8236,19.486,19.473,4.94461036]
[1693773140100,97.8236,19.486,19.473,4.94461036]
[1693773140302,97.8236,19.486,19.474,55.0]
[1693773140604,97.8236,19.486,19.475,4.94461036]
[1693773140802,8.005,19.486,19.475,4.94461036]
[1693773148306,8.005,19.487,19.471,4.94461036]
[1693773148491,55.0,19.486,19.471,4.94461036]
[1693773149411,55.0,19.486,19.472,55.0]
[1693773149598,55.0,19.486,19.473,4.94461036]
[1693773150208,8.005,19.487,19.473,4.94461036]
[1693773162903,55.0,19.486,19.473,4.94461036]
[1693773163104,8.006,19.485,19.471,4.94461036]
[1693773163303,8.006,19.485,19.472,55.0]
[1693773163503,8.006,19.485,19.473,4.94461036]
[1693773166916,55.0,19.486,19.473,4.94461036]
[1693773167308,63.005,19.486,19.473,4.94461036]
[1693773175614,107.3787,19.488,19.473,4.94461036]
[1693773176009,55.0,19.487,19.473,4.94461036]
[1693773176209,63.005,19.487,19.473,4.94461036]
[1693773177118,55.0,19.487,19.473,4.94461036]
[1693773178209,107.3787,19.488,19.473,4.94461036]
[1693773178414,107.3787,19.488,19.474,55.0]
[1693773178608,107.3787,19.488,19.475,4.94461036]
[1693773182424,107.3787,19.488,19.471,4.94461036]
[1693773182629,107.3787,19.488,19.473,4.94461036]
[1693773182822,107.3787,19.488,19.475,4.94461036]
[1693773183023,107.3787,19.488,19.473,4.94461036]
[1693773183238,8.005,19.488,19.473,4.94461036]
[1693773183445,148.7062,19.487,19.473,4.94461036]
[1693773183738,8.005,19.486,19.473,4.94461036]
[1693773190031,148.7062,19.487,19.473,4.94461036]
[1693773191536,156.7112,19.487,19.473,4.94461036]
[1693773193636,101.7112,19.487,19.473,4.94461036]
[1693773194014,101.7112,19.487,19.472,55.0]
[1693773194015,93.7062,19.487,19.475,4.94461036]
[1693773194421,93.7062,19.487,19.476,55.0]
[1693773194622,93.7062,19.487,19.477,4.94461036]
[1693773198926,93.7062,19.487,19.476,55.0]
[1693773203636,93.7062,19.487,19.477,4.94461036]
[1693773205443,93.7062,19.487,19.471,4.94461036]
[1693773205645,93.7062,19.487,19.473,4.94461036]
[1693773205829,93.7062,19.487,19.472,55.0]
[1693773205830,93.7062,19.487,19.475,4.94461036]
[1693773206027,93.7062,19.487,19.473,4.94461036]
[1693773206230,93.7062,19.487,19.475,4.94461036]
[1693773206529,93.7062,19.487,19.476,55.0]
[1693773206731,93.7062,19.487,19.477,4.94461036]
[1693773209351,93.7062,19.487,19.476,55.0]
[1693773209741,93.7062,19.487,19.477,4.94461036]
[1693773215954,93.7062,19.487,19.471,4.94461036]
[1693773216253,93.7062,19.487,19.473,4.94461036]
[1693773216454,93.7062,19.487,19.475,4.94461036]
[1693773218052,55.0,19.486,19.471,4.94461036]
[1693773220559,63.005,19.486,19.471,4.94461036]
[1693773223653,63.005,19.486,19.466,4.94461036]
[1693773223850,63.005,19.486,19.467,55.0]
[1693773224158,63.005,19.486,19.468,4.94461036]
[1693773224360,63.005,19.486,19.469,55.0]
[1693773224557,63.005,19.486,19.47,4.94461036]
[1693773227866,63.005,19.486,19.467,4.94461036]
[1693773228067,63.005,19.486,19.468,55.0]
[1693773228256,63.005,19.486,19.469,4.94461036]
[1693773230957,104.24177451,19.486,19.469,4.94461036]
[1693773242465,49.24177451,19.486,19.47,55.0]
[1693773242671,49.24177451,19.486,19.471,4.94461036]
[1693773243760,63.006,19.485,19.471,4.94461036]
[1693773244879,55.0,19.485,19.471,4.94461036]
[1693773245071,63.006,19.485,19.471,4.94461036]
[1693773251686,8.006,19.485,19.471,4.94461036]
[1693773252883,55.0,19.484,19.471,4.94461036]
[1693773253180,8.007,19.482,19.471,4.94461036]
[1693773261582,55.0,19.484,19.471,4.94461036]
[1693773261886,8.007,19.483,19.471,4.94461036]
[1693773264091,8.007,19.483,19.467,4.94461036]
[1693773264392,8.007,19.483,19.468,55.0]
[1693773264585,8.007,19.483,19.469,4.94461036]
[1693773272202,8.006,19.484,19.469,4.94461036]
[1693773272494,55.0,19.483,19.469,4.94461036]
[1693773273504,63.007,19.483,19.467,4.94461036]
[1693773273700,63.007,19.483,19.468,55.0]
[1693773273891,63.007,19.483,19.469,4.94461036]
[1693773277485,55.0,19.483,19.469,4.94461036]
[1693773277686,23.28643142,19.485,19.469,4.94461036]
[1693773277687,55.0,19.484,19.469,4.94461036]
[1693773277893,63.006,19.484,19.469,4.94461036]
[1693773278600,37.53,19.48,19.469,4.94461036]
[1693773278795,28.008,19.479,19.467,4.94461036]
[1693773279001,28.008,19.479,19.464,4.94461036]
[1693773279183,28.008,19.479,19.462,4.94461036]
[1693773279701,28.008,19.479,19.461,4.94461036]
[1693773280701,28.008,19.479,19.461,30.59632389]
[1693773281203,28.008,19.479,19.462,25.65171353]
[1693773281412,28.008,19.479,19.463,59.94461036]
[1693773286206,8.008,19.479,19.463,59.94461036]
[1693773288196,8.008,19.479,19.463,85.59632389]
[1693773288593,8.008,19.481,19.47,37.53]
[1693773288797,98.6217,19.487,19.471,59.94461036]
[1693773289201,8.005,19.486,19.471,59.94461036]
[1693773289402,98.6217,19.487,19.471,85.59632389]
[1693773289699,98.6217,19.487,19.472,25.65171353]
[1693773289909,98.6217,19.487,19.473,59.94461036]
[1693773290112,106.6267,19.487,19.473,59.94461036]
[1693773290312,98.6217,19.487,19.473,59.94461036]
[1693773291314,106.6267,19.487,19.473,59.94461036]
[1693773298321,98.6217,19.487,19.473,59.94461036]
[1693773300723,106.6267,19.487,19.473,59.94461036]
[1693773306627,98.6217,19.487,19.473,59.94461036]
[1693773315227,8.004,19.49,19.473,59.94461036]
[1693773315430,8.002,19.495,19.48,37.53]
[1693773315642,8.001,19.496,19.481,59.94461036]
[1693773318119,8.001,19.496,19.481,4.94461036]
[1693773318325,55.0,19.495,19.481,4.94461036]
[1693773318548,8.003,19.491,19.481,4.94461036]
[1693773324130,8.003,19.491,19.476,24.94461036]
[1693773324330,8.003,19.491,19.477,55.0]
[1693773324539,8.003,19.491,19.478,4.94461036]
[1693773324739,8.003,19.491,19.479,55.0]
[1693773324938,8.003,19.491,19.48,4.94461036]
[1693773327130,8.003,19.493,19.48,4.94461036]
[1693773332049,23.56386286,19.493,19.48,4.94461036]
[1693773332345,37.53,19.49,19.48,4.94461036]
[1693773332557,8.005,19.487,19.474,4.94461036]
[1693773332752,8.004,19.488,19.471,4.94461036]
[1693773332961,37.53,19.49,19.471,4.94461036]
[1693773333140,20.0,19.489,19.471,4.94461036]
[1693773333553,28.004,19.489,19.471,4.94461036]
[1693773333755,28.004,19.489,19.472,55.0]
[1693773334052,28.004,19.489,19.473,4.94461036]
[1693773334258,28.004,19.489,19.474,55.0]
[1693773334450,28.004,19.489,19.475,4.94461036]
[1693773334651,28.004,19.489,19.476,55.0]
[1693773334851,28.004,19.489,19.477,4.94461036]
[1693773352763,8.004,19.489,19.477,4.94461036]
[1693773360969,33.864,19.489,19.477,4.94461036]
[1693773361172,55.0,19.488,19.471,4.94461036]
[1693773361489,8.005,19.486,19.471,4.94461036]
[1693773362283,8.005,19.487,19.471,4.94461036]
[1693773362585,63.004,19.488,19.473,4.94461036]
[1693773362774,63.004,19.488,19.475,4.94461036]
[1693773362974,63.004,19.488,19.473,4.94461036]
[1693773363176,63.004,19.488,19.475,4.94461036]
[1693773363381,63.004,19.488,19.473,4.94461036]
[1693773363566,63.004,19.488,19.475,4.94461036]
[1693773363776,8.004,19.488,19.475,4.94461036]
[1693773363974,8.004,19.488,19.473,4.94461036]
[1693773364183,8.004,19.488,19.474,55.0]
[1693773364380,8.004,19.488,19.475,4.94461036]
[1693773371185,8.004,19.488,19.476,55.0]
[1693773371390,8.004,19.488,19.477,4.94461036]
[1693773371792,8.004,19.488,19.471,4.94461036]
[1693773371992,8.004,19.488,19.472,55.0]
[1693773372292,8.004,19.488,19.473,4.94461036]
[1693773372491,8.004,19.488,19.474,55.0]
[1693773372800,8.004,19.488,19.475,4.94461036]
[1693773372977,8.004,19.488,19.477,4.94461036]
[1693773375595,23.08874575,19.488,19.477,4.94461036]
[1693773379997,23.08874575,19.488,19.471,4.94461036]
[1693773380189,23.08874575,19.488,19.472,55.0]
[1693773380390,23.08874575,19.488,19.473,4.94461036]
[1693773380600,23.08874575,19.488,19.474,55.0]
[1693773380800,23.08874575,19.488,19.475,4.94461036]
[1693773382409,55.0,19.487,19.475,4.94461036]
[1693773382593,8.006,19.485,19.471,4.94461036]
[1693773382994,98.942,19.484,19.471,4.94461036]
[1693773383394,8.006,19.485,19.471,4.94461036]
[1693773383595,98.942,19.484,19.471,4.94461036]
[1693773383794,98.942,19.484,19.472,55.0]
[1693773383995,8.006,19.485,19.473,4.94461036]
[1693773388199,98.942,19.486,19.473,4.94461036]
[1693773388806,106.947,19.486,19.473,4.94461036]
[1693773396506,106.947,19.486,19.471,4.94461036]
[1693773396819,106.947,19.486,19.472,55.0]
[1693773397008,106.947,19.486,19.473,4.94461036]
[1693773397215,8.005,19.486,19.473,4.94461036]
[1693773398209,98.9279,19.487,19.473,4.94461036]
[1693773398414,98.9279,19.487,19.474,55.0]
[1693773398619,98.9279,19.487,19.475,4.94461036]
[1693773399311,98.9279,19.487,19.476,55.0]
[1693773399511,98.9279,19.487,19.477,4.94461036]
[1693773399706,98.9279,19.487,19.478,55.0]
[1693773400018,98.9279,19.487,19.479,4.94461036]
[1693773400407,98.9279,19.487,19.478,55.0]
[1693773400815,98.9279,19.487,19.479,4.94461036]
[1693773401617,98.9279,19.487,19.478,55.0]
[1693773401823,98.9279,19.487,19.479,4.94461036]
[1693773402013,98.9279,19.487,19.478,55.0]
[1693773403117,98.9279,19.487,19.479,4.94461036]
[1693773403516,98.9279,19.487,19.478,55.0]
[1693773409930,98.9279,19.487,19.479,4.94461036]
[1693773420938,106.9329,19.487,19.479,4.94461036]
[1693773421134,106.9329,19.487,19.471,25.65171353]
[1693773421135,106.9329,19.487,19.472,4.94461036]
[1693773421440,106.9329,19.487,19.473,55.0]
[1693773421633,106.9329,19.487,19.474,4.94461036]
[1693773421833,106.9329,19.487,19.472,4.94461036]
[1693773422938,106.9329,19.487,19.473,55.0]
[1693773423142,106.9329,19.487,19.474,4.94461036]
[1693773423331,106.9329,19.487,19.475,55.0]
[1693773423528,106.9329,19.487,19.476,4.94461036]
[1693773429628,106.9329,19.487,19.472,4.94461036]
[1693773429832,106.9329,19.487,19.473,55.0]
[1693773430042,106.9329,19.487,19.474,4.94461036]
[1693773442954,106.9329,19.487,19.472,4.94461036]
[1693773443159,106.9329,19.487,19.473,55.0]
[1693773443452,106.9329,19.487,19.474,4.94461036]
[1693773461073,106.9329,19.487,19.47,37.53]
[1693773461074,55.0,19.486,19.472,4.94461036]
[1693773461377,8.007,19.483,19.471,4.94461036]
[1693773474859,55.0,19.482,19.471,4.94461036]
[1693773475065,55.0,19.482,19.467,24.94461036]
[1693773475066,45.538,19.48,19.467,24.94461036]
[1693773475766,37.53,19.48,19.467,24.94461036]
[1693773475973,37.53,19.48,19.467,4.94461036]
[1693773476269,92.0691,19.481,19.466,4.94461036]
[1693773476477,92.0691,19.481,19.468,4.94461036]
[1693773477277,92.0691,19.481,19.469,55.0]
[1693773477478,92.0691,19.481,19.47,4.94461036]
[1693773479078,92.0691,19.481,19.471,55.0]
[1693773479274,92.0691,19.481,19.472,4.94461036]
[1693773479478,92.0691,19.481,19.473,55.0]
[1693773479680,92.0691,19.481,19.474,4.94461036]
[1693773479889,8.005,19.487,19.474,4.94461036]
[1693773480271,8.005,19.487,19.471,4.94461036]
[1693773480474,8.005,19.487,19.472,55.0]
[1693773480679,8.005,19.487,19.473,4.94461036]
[1693773487981,55.0,19.486,19.473,4.94461036]
[1693773488285,8.006,19.485,19.473,4.94461036]
[1693773491491,8.005,19.486,19.473,4.94461036]
[1693773492191,120.90815053,19.488,19.473,4.94461036]
[1693773492497,112.90315053,19.488,19.473,4.94461036]
[1693773492685,97.5503,19.488,19.474,55.0]
[1693773492880,97.5503,19.488,19.475,4.94461036]
[1693773492881,8.005,19.487,19.475,4.94461036]
[1693773496997,105.5543,19.488,19.475,4.94461036]
[1693773497297,105.5543,19.488,19.471,4.94461036]
[1693773497483,8.004,19.488,19.471,4.94461036]
[1693773497997,90.8504,19.487,19.471,4.94461036]
[1693773498183,90.8504,19.487,19.472,55.0]
[1693773498378,90.8504,19.487,19.473,4.94461036]
[1693773498596,90.8504,19.487,19.474,55.0]
[1693773498898,90.8504,19.487,19.475,24.94461036]
[1693773499089,90.8504,19.487,19.476,55.0]
[1693773499286,90.8504,19.487,19.477,24.94461036]
[1693773499498,90.8504,19.487,19.478,55.0]
[1693773499798,90.8504,19.487,19.479,4.94461036]
[1693773504207,438.09592648,19.5,19.48,37.53]
[1693773504391,20.0,19.499,19.481,59.94461036]
[1693773504589,111.283,19.499,19.481,59.94461036]
[1693773505090,138.0488448,19.499,19.481,59.94461036]
[1693773505690,55.0,19.498,19.481,59.94461036]
[1693773505999,63.001,19.498,19.481,59.94461036]
[1693773507388,81.7668448,19.498,19.481,59.94461036]
[1693773508605,18.7658448,19.497,19.481,59.94461036]
[1693773508809,8.001,19.496,19.481,59.94461036]
[1693773526327,111.283,19.499,19.481,59.94461036]
[1693773526605,20.0,19.499,19.482,85.53722813]
[1693773526796,20.0,19.499,19.484,4.94461036]
[1693773526995,20.0,19.499,19.482,85.53722813]
[1693773526996,20.0,19.499,19.486,4.94461036]
[1693773527207,20.0,19.499,19.483,4.94461036]
[1693773527411,20.0,19.499,19.485,4.94461036]
[1693773527716,20.0,19.499,19.487,4.94461036]
[1693773528011,132.36414592,19.505,19.49,37.53]
[1693773528305,94.6789,19.505,19.491,4.94461036]
[1693773528516,94.6789,19.505,19.492,55.0]
[1693773528804,94.6789,19.505,19.493,4.94461036]
[1693773529400,94.6789,19.505,19.491,4.94461036]
[1693773530911,94.6789,19.505,19.493,4.94461036]
[1693773531212,7.996,19.508,19.493,4.94461036]
[1693773531418,55.0,19.507,19.493,4.94461036]
[1693773532113,55.0,19.508,19.493,4.94461036]
[1693773534609,62.996,19.508,19.493,4.94461036]
[1693773535015,55.0,19.508,19.493,4.94461036]
[1693773535319,62.996,19.508,19.493,4.94461036]
[1693773538828,62.996,19.508,19.491,4.94461036]
[1693773539125,81.7618448,19.508,19.491,4.94461036]
[1693773539621,107.5968448,19.508,19.491,4.94461036]
[1693773539815,81.7618448,19.508,19.491,4.94461036]
[1693773545012,107.5968448,19.508,19.491,4.94461036]
[1693773546924,81.7618448,19.508,19.491,4.94461036]
[1693773553408,96.8485,19.509,19.492,55.0]
[1693773553608,96.8485,19.509,19.493,4.94461036]
[1693773553808,96.8485,19.509,19.494,55.0]
[1693773554022,96.8485,19.509,19.495,4.94461036]
[1693773554324,96.8485,19.509,19.497,4.94461036]
[1693773554533,96.8485,19.509,19.495,4.94461036]
[1693773554715,96.8485,19.509,19.494,55.0]
[1693773554716,96.8485,19.509,19.497,4.94461036]
[1693773554913,18.7658448,19.516,19.495,4.94461036]
[1693773555110,94.376,19.515,19.5,37.53]
[1693773555619,102.369,19.515,19.501,59.94461036]
[1693773556322,7.993,19.515,19.501,59.94461036]
[1693773558630,7.993,19.517,19.501,59.94461036]
[1693773558820,55.0,19.516,19.501,59.94461036]
[1693773559024,62.993,19.516,19.501,59.94461036]
[1693773559817,62.993,19.516,19.501,4.94461036]
[1693773559818,81.7588448,19.516,19.501,4.94461036]
[1693773560121,73.7658448,19.516,19.497,24.94461036]
[1693773560328,73.7658448,19.516,19.5,37.53]
[1693773560528,73.7658448,19.516,19.501,4.94461036]
[1693773560832,81.7588448,19.516,19.501,4.94461036]
[1693773561632,55.0,19.516,19.501,4.94461036]
[1693773562330,62.993,19.516,19.501,4.94461036]
[1693773563332,55.0,19.516,19.501,4.94461036]
[1693773564318,7.993,19.517,19.501,4.94461036]
[1693773564520,7.993,19.517,19.502,55.0]
[1693773564833,7.993,19.517,19.503,4.94461036]
[1693773565134,7.993,19.517,19.505,4.94461036]
[1693773565323,7.993,19.517,19.503,4.94461036]
[1693773565524,7.993,19.517,19.505,4.94461036]
[1693773565729,55.0,19.516,19.505,4.94461036]
[1693773566032,62.993,19.516,19.501,4.94461036]
[1693773566230,62.993,19.516,19.498,4.94461036]
[1693773566431,62.993,19.516,19.499,55.0]
[1693773566634,62.993,19.516,19.5,4.94461036]
[1693773566824,62.993,19.516,19.501,55.0]
[1693773567021,62.993,19.516,19.502,4.94461036]
[1693773568433,55.0,19.516,19.502,4.94461036]
[1693773568634,55.0,19.517,19.502,4.94461036]
[1693773569238,62.993,19.517,19.502,4.94461036]
[1693773600545,62.993,19.517,19.503,55.0]
[1693773600748,62.993,19.517,19.504,4.94461036]
[1693773601554,7.993,19.517,19.504,4.94461036]
[1693773610555,7.993,19.517,19.505,55.0]
[1693773610756,7.993,19.517,19.506,4.94461036]
[1693773611060,7.993,19.517,19.501,4.94461036]
[1693773611264,7.993,19.517,19.502,55.0]
[1693773611462,7.993,19.517,19.503,4.94461036]
[1693773611664,7.993,19.517,19.504,55.0]
[1693773611857,7.993,19.517,19.505,4.94461036]
[1693773645778,7.994,19.515,19.499,4.94461036]
[1693773645987,7.994,19.515,19.498,4.94461036]
[1693773646681,94.2428,19.514,19.498,4.94461036]
[1693773646872,94.2428,19.514,19.499,55.0]
[1693773647064,94.2428,19.514,19.5,4.94461036]
[1693773647265,94.2428,19.514,19.501,55.0]
[1693773647475,94.2428,19.514,19.502,4.94461036]
[1693773647674,7.992,19.518,19.503,55.0]
[1693773647880,149.2428,19.517,19.504,4.94461036]
[1693773648185,55.0,19.517,19.504,4.94461036]
[1693773648366,94.2428,19.516,19.504,4.94461036]
[1693773650671,94.2428,19.516,19.499,4.94461036]
[1693773650871,94.2428,19.516,19.5,55.0]
[1693773651189,94.2428,19.516,19.501,4.94461036]
[1693773651396,94.2428,19.516,19.502,55.0]
[1693773651684,94.2428,19.516,19.503,4.94461036]
[1693773652977,94.2428,19.516,19.504,55.0]
[1693773653180,94.2428,19.516,19.505,4.94461036]
[1693773667094,102.2358,19.516,19.505,4.94461036]
[1693773671197,102.2358,19.516,19.501,4.94461036]
[1693773671398,102.2358,19.516,19.502,55.0]
[1693773671598,102.2358,19.516,19.503,4.94461036]
[1693773671906,102.2358,19.516,19.504,55.0]
[1693773672203,102.2358,19.516,19.505,4.94461036]
[1693773672399,94.2428,19.516,19.505,4.94461036]
[1693773679095,94.2428,19.516,19.498,4.94461036]
[1693773679308,94.2428,19.516,19.499,55.0]
[1693773679509,94.2428,19.516,19.5,4.94461036]
[1693773679706,94.2428,19.516,19.501,55.0]
[1693773679913,102.2358,19.516,19.502,4.94461036]
[1693773680103,102.2358,19.516,19.503,55.0]
[1693773680307,102.2358,19.516,19.504,4.94461036]
[1693773681505,102.2358,19.516,19.498,4.94461036]